lending/lending_fUSD_20241025
["ID","MTS","AMOUNT","RATE_DAILY","PERIOD"]
[340812148,1729866659395,-612.9,0.0005452,120]
[340812149,1729866659406,-500.0,0.0005452,120]
[340812150,1729866659416,-2922.63,0.0005452,120]
[340812151,1729866659425,-500.0,0.0005452,120]
[340812152,1729866659435,-500.0,0.0005452,120]
[340812153,1729866659446,-500.0,0.0005452,120]
[340812154,1729866659455,-3301.62,0.0005452,120]
[340812155,1729866659467,-1319.19,0.0005452,120]
[340812156,1729866659477,-2091.41,0.0005452,120]
[340812157,1729866659487,-500.0,0.0005452,120]
[340812158,1729866659497,-518.84,0.0005452,120]
[340812159,1729866659507,-500.0,0.0005452,120]
[340812160,1729866659517,-2000.0,0.0005452,2]
[340812161,1729866659527,-500.0,0.00054761,120]
[340812162,1729866659537,-2364.0083071,0.00054762,2]
[340812163,1729866659546,-2707.3342328,0.00054762,2]
[340812164,1729866659556,-2880.7846106,0.00054762,2]
[340812165,1729866659566,-3302.538312,0.00054762,2]
[340812166,1729866659577,-3642.7117575,0.00054762,2]
[340812167,1729866659586,-4176.0134008,0.00054762,2]
[340812168,1729866659597,-392.80383529,0.00054786,2]
[340812169,1729866659606,-208.0,0.0005479,30]
[340812170,1729866659616,-214.0,0.0005479,30]
[340812171,1729866659626,-210.0,0.0005479,30]
[340812172,1729866659635,-375.0,0.00054793,2]
[340812173,1729866659645,-158.961698,0.00054794,120]
[340812174,1729866659655,-1223.67,0.00054794,120]
[340812175,1729866659665,-500.0,0.00054794,120]
[340812176,1729866659675,-500.0,0.00054794,120]
[340812177,1729866659685,-500.0,0.00054794,120]
[340812178,1729866659694,-887.29,0.00054794,120]
[340812179,1729866659704,-2110.0,0.00054794,30]
[340812180,1729866659713,-684.69,0.00054794,120]
[340812181,1729866659723,-500.0,0.00054794,120]
[340812182,1729866659733,-500.0,0.00054794,120]
[340812183,1729866659743,-504.04917278,0.00054794,120]
[340812184,1729866659754,-500.0,0.00054794,120]
[340812185,1729866659764,-500.0,0.00054794,120]
[340812186,1729866659774,-500.0,0.00054794,120]
[340812187,1729866659784,-500.0,0.00054794,120]
[340812188,1729866659794,-500.0,0.00054794,120]
[340812189,1729866659804,-1603.99,0.00054794,120]
[340812190,1729866659814,-500.0,0.00054794,120]
[340812191,1729866659823,-1069.19,0.00054794,120]
[340812192,1729866659833,-1219.66,0.00054794,120]
[340812193,1729866659843,-500.0,0.00054794,120]
[340812194,1729866659852,-595.61,0.00054794,120]
[340812195,1729866659861,-803.59,0.00054794,120]
[340812196,1729866659871,-511.03,0.00054794,120]
[340812197,1729866659881,-258.35975358,0.00054794,120]
[340812198,1729866659890,-500.0,0.00054794,120]
[340812199,1729866659900,-804.6,0.00054794,120]
[340812200,1729866659909,-500.0,0.00054794,120]
[340812201,1729866659918,-500.0,0.00054794,120]
[340812202,1729866659928,-1522.61,0.00054794,120]
[340812203,1729866659937,-681.96,0.00054794,120]
[340812204,1729866659947,-500.0,0.00054794,120]
[340812205,1729866659958,-1145.82,0.00054794,120]
[340812206,1729866659968,-5122.33,0.00054794,120]
[340812207,1729866659978,-500.0,0.00054794,55]
[340812208,1729866659989,-500.0,0.00054794,120]
[340812209,1729866659999,-500.0,0.00054794,120]
[340812210,1729866660009,-655.32,0.00054794,120]
[340812211,1729866660020,-5230.31,0.00054794,120]
[340812212,1729866660030,-235.45376147,0.00054794,120]
[340812213,1729866660041,-1673.16844731,0.00054794,120]
[340812214,1729866660051,-22445.75,0.00054794,120]
[340812215,1729866660061,-12679.49,0.00054794,120]
[340812216,1729866660072,-500.0,0.00054794,120]
[340812217,1729866660083,-500.0,0.00054794,120]
[340812218,1729866660094,-500.0,0.00054794,120]
[340812219,1729866660104,-1800.42,0.00054794,120]
[340812220,1729866660113,-697.56,0.00054794,120]
[340812221,1729866660123,-500.0,0.00054794,120]
[340812222,1729866660133,-3337.84,0.00054794,120]
[340812223,1729866660142,-1405.83,0.00054794,120]
[340812224,1729866660151,-500.0,0.00054794,120]
[340812225,1729866660161,-750.8,0.00054794,21]
[340812226,1729866660171,-677.34,0.00054794,7]
[340812227,1729866660181,-776.72,0.00054794,120]
[340812228,1729866660191,-500.0,0.00054794,120]
[340812229,1729866660201,-2347.7,0.00054794,120]
[340812230,1729866660211,-666.05,0.00054794,120]
[340812231,1729866660221,-3048.28,0.00054794,120]
[340812232,1729866660231,-500.0,0.00054794,120]
[340812233,1729866660241,-775.41,0.00054794,120]
[340812234,1729866660250,-508.09,0.00054794,120]
[340812235,1729866660259,-808.75,0.00054794,120]
[340812236,1729866660270,-1715.75,0.00054794,120]
[340812237,1729866660280,-2038.45,0.00054794,120]
[340812238,1729866660289,-671.69,0.00054794,120]
[340812239,1729866660302,-511.0141471,0.00054794,120]
[340812240,1729866660311,-1343.15,0.00054794,120]
[340812241,1729866660322,-642.22,0.00054794,120]
[340812242,1729866660331,-800.27,0.00054794,120]
[340812243,1729866660340,-158.751892,0.00054794,120]
[340812244,1729866660350,-1556.19,0.00054794,120]
[340812245,1729866660360,-1834.7,0.00054794,120]
[340812246,1729866660369,-1599.54,0.00054794,120]
[340812247,1729866660379,-500.0,0.00054794,120]
[340812248,1729866660389,-6179.67,0.00054794,120]
[340812249,1729866660399,-2258.98,0.00054794,4]
[340812250,1729866660409,-612.9,0.00054794,120]
[340812251,1729866660418,-500.0,0.00054794,120]
[340812252,1729866660427,-2922.63,0.00054794,120]
[340812253,1729866660437,-500.0,0.00054794,120]
[340812254,1729866660447,-500.0,0.00054794,120]
[340812255,1729866660457,-500.0,0.00054794,120]
[340812256,1729866660467,-3301.62,0.00054794,120]
[340812257,1729866660476,-1319.19,0.00054794,120]
[340812258,1729866660570,-2091.41,0.00054794,120]
[340812259,1729866660582,-500.0,0.00054794,120]
[340812260,1729866660593,-518.84,0.00054794,120]
[340812261,1729866660604,-500.0,0.00054794,120]
[340812262,1729866660614,-153.0,0.00054795,120]
[340812263,1729866660626,-879.0,0.00054795,120]
[340812264,1729866660636,-250.0,0.00054795,120]
[340812265,1729866660646,-250.0,0.00054795,120]
[340812266,1729866660657,-250.0,0.00054795,120]
[340812267,1729866660667,-250.0,0.00054795,120]
[340812268,1729866660678,-250.0,0.00054795,120]
[340812269,1729866660687,-250.0,0.00054795,120]
[340812270,1729866660696,-250.0,0.00054795,120]
[340812271,1729866660707,-250.0,0.00054795,120]
[340812272,1729866660718,-250.0,0.00054795,120]
[340812273,1729866660727,-300.339063,0.00054795,120]
[340812274,1729866660738,-563.0,0.00054795,120]
[340812275,1729866660750,-653.0,0.00054795,120]
[340812276,1729866660761,-508.0,0.00054795,120]
[340812277,1729866660769,-554.0,0.00054795,120]
[340812278,1729866660779,-508.0,0.00054795,120]
[340812279,1729866660788,-500.0,0.00054799,120]
[340812280,1729866660799,-500.0,0.00054799,120]
[340812281,1729866660808,-500.0,0.00054799,120]
[340812282,1729866660818,-500.0,0.00054799,120]
[340812283,1729866660827,-1000000.0,0.000548,120]
[340812284,1729866660837,-4464.61,0.000548,60]
[340812285,1729866660846,-5081.24,0.000548,60]
[340812286,1729866660855,-317.98,0.000548,120]
[340812287,1729866660866,-800.0,0.00054822,60]
[340812288,1729866660876,-374.32,0.00054842,2]
[340812289,1729866660886,-500.0,0.00054999,120]
[340812290,1729866660895,-50000.0,0.00055,45]
[340812291,1729866660904,-50000.0,0.00055,55]
[340812292,1729866660914,-3000.0,0.00055,2]
[340812293,1729866660923,-1000.0,0.00055,120]
[340812294,1729866660933,-468.247534,0.00055,120]
[340812295,1729866660943,-30000.0,0.00055,120]
[340812296,1729866660952,-211.686556,0.00055,100]
[340812297,1729866660965,-998.64,0.0005504,120]
[340812298,1729866660975,-1223.67,0.00055068,120]
[340812299,1729866660984,-500.0,0.00055068,120]
[340812300,1729866660993,-500.0,0.00055068,120]
[340812301,1729866661004,-500.0,0.00055068,120]
[340812302,1729866661015,-887.29,0.00055068,120]
[340812303,1729866661024,-684.69,0.00055068,120]
[340812304,1729866661033,-461.59064246,0.00055068,120]
[340812305,1729866661043,-500.0,0.00055068,120]
[340812306,1729866661053,-500.0,0.00055068,120]
[340812307,1729866661062,-500.0,0.00055068,120]
[340812308,1729866661071,-454.72,0.00055068,120]
[340812309,1729866661081,-579.12292049,0.00055068,120]
[340812310,1729866661090,-1603.99,0.00055068,120]
[340812311,1729866661100,-500.0,0.00055068,120]
[340812312,1729866661109,-1069.19,0.00055068,120]
[340812313,1729866661119,-1219.66,0.00055068,120]
[340812314,1729866661128,-500.0,0.00055068,120]
[340812315,1729866661137,-595.61,0.00055068,120]
[340812316,1729866661146,-803.59,0.00055068,120]
[340812317,1729866661156,-511.03,0.00055068,120]
[340812318,1729866661168,-500.0,0.00055068,120]
[340812319,1729866661178,-804.6,0.00055068,120]
[340812320,1729866661188,-500.0,0.00055068,120]
[340812321,1729866661197,-500.0,0.00055068,120]
[340812322,1729866661208,-1522.61,0.00055068,120]
[340812323,1729866661217,-681.96,0.00055068,120]
[340812324,1729866661227,-500.0,0.00055068,120]
[340812325,1729866661238,-1145.82,0.00055068,120]
[340812326,1729866661249,-5122.33,0.00055068,120]
[340812327,1729866661261,-500.0,0.00055068,55]
[340812328,1729866661270,-500.0,0.00055068,120]
[340812329,1729866661280,-206.34656329,0.00055068,120]
[340812330,1729866661290,-655.32,0.00055068,120]
[340812331,1729866661303,-5230.31,0.00055068,120]
[340812332,1729866661314,-22445.75,0.00055068,120]
[340812333,1729866661326,-12679.49,0.00055068,120]
[340812334,1729866661336,-215.10439895,0.00055068,120]
[340812335,1729866661346,-500.0,0.00055068,120]
[340812336,1729866661356,-204.41325327,0.00055068,120]
[340812337,1729866661366,-1800.42,0.00055068,120]
[340812338,1729866661375,-697.56,0.00055068,120]
[340812339,1729866661385,-500.0,0.00055068,120]
[340812340,1729866661395,-3337.84,0.00055068,120]
[340812341,1729866661405,-1405.83,0.00055068,120]
[340812342,1729866661414,-500.0,0.00055068,120]
[340812343,1729866661424,-750.8,0.00055068,21]
[340812344,1729866661434,-677.34,0.00055068,7]
[340812345,1729866661444,-776.72,0.00055068,120]
[340812346,1729866661454,-500.0,0.00055068,120]
[340812347,1729866661464,-2347.7,0.00055068,120]
[340812348,1729866661474,-666.05,0.00055068,120]
[340812349,1729866661484,-3048.28,0.00055068,120]
[340812350,1729866661494,-500.0,0.00055068,120]
[340812351,1729866661507,-775.41,0.00055068,120]
[340812352,1729866661516,-508.09,0.00055068,120]
[340812353,1729866661526,-808.75,0.00055068,120]
[340812354,1729866661536,-1715.75,0.00055068,120]
[340812355,1729866661545,-2038.45,0.00055068,120]
[340812356,1729866661555,-671.69,0.00055068,120]
[340812357,1729866661565,-1343.15,0.00055068,120]
[340812358,1729866661575,-642.22,0.00055068,120]
[340812359,1729866661585,-800.27,0.00055068,120]
[340812360,1729866661595,-1556.19,0.00055068,120]
[340812361,1729866661605,-1834.7,0.00055068,120]
[340812362,1729866661615,-1599.54,0.00055068,120]
[340812363,1729866661625,-500.0,0.00055068,120]
[340812364,1729866661636,-6179.67,0.00055068,120]
[340812365,1729866661645,-2258.98,0.00055068,4]
[340812366,1729866661656,-612.9,0.00055068,120]
[340812367,1729866661667,-500.0,0.00055068,120]
[340812368,1729866661677,-2922.63,0.00055068,120]
[340812369,1729866661687,-500.0,0.00055068,120]
[340812370,1729866661697,-407.51360132,0.00055068,120]
[340812371,1729866661708,-500.0,0.00055068,120]
[340812372,1729866661719,-3301.62,0.00055068,120]
[340812373,1729866661731,-1319.19,0.00055068,120]
[340812374,1729866661742,-2091.41,0.00055068,120]
[340812375,1729866661754,-278.77264663,0.00055068,120]
[340812376,1729866661764,-417.18,0.00055294,30]
[340812377,1729866661773,-700.0,0.00055327,120]
[340812378,1729866661782,-500.0,0.00055328,120]
[340812379,1729866661792,-544.47921619,0.00055338,2]
[340812380,1729866661802,-200.96230333,0.00055338,2]
[340812381,1729866661886,-160.73236076,0.00055338,2]
[340812382,1729866661895,-617.47992419,0.00055341,120]
[340812383,1729866661905,-1223.67,0.00055342,120]
[340812384,1729866661915,-500.0,0.00055342,120]
[340812385,1729866661924,-336.3955544,0.00055342,120]
[340812386,1729866661934,-195.17840292,0.00055342,120]
[340812387,1729866661943,-887.29,0.00055342,120]
[340812388,1729866661952,-684.69,0.00055342,120]
[340812389,1729866661962,-500.0,0.00055342,120]
[340812390,1729866661972,-500.0,0.00055342,120]
[340812391,1729866661982,-500.0,0.00055342,120]
[340812392,1729866661991,-1603.99,0.00055342,120]
[340812393,1729866662000,-500.0,0.00055342,120]
[340812394,1729866662012,-1069.19,0.00055342,120]
[340812395,1729866662021,-1219.66,0.00055342,120]
[340812396,1729866662031,-500.0,0.00055342,120]
[340812397,1729866662041,-595.61,0.00055342,120]
[340812398,1729866662050,-803.59,0.00055342,120]
[340812399,1729866662060,-511.03,0.00055342,120]
[340812400,1729866662070,-500.0,0.00055342,120]
[340812401,1729866662079,-804.6,0.00055342,120]
[340812402,1729866662089,-500.0,0.00055342,120]
[340812403,1729866662098,-500.0,0.00055342,120]
[340812404,1729866662109,-1522.61,0.00055342,120]
[340812405,1729866662118,-681.96,0.00055342,120]
[340812406,1729866662128,-500.0,0.00055342,120]
[340812407,1729866662138,-1145.82,0.00055342,120]
[340812408,1729866662147,-5122.33,0.00055342,120]
[340812409,1729866662157,-500.0,0.00055342,55]
[340812410,1729866662166,-500.0,0.00055342,120]
[340812411,1729866662175,-655.32,0.00055342,120]
[340812412,1729866662185,-5230.31,0.00055342,120]
[340812413,1729866662195,-22445.75,0.00055342,120]
[340812414,1729866662205,-12679.49,0.00055342,120]
[340812415,1729866662215,-500.0,0.00055342,120]
[340812416,1729866662225,-1800.42,0.00055342,120]
[340812417,1729866662234,-697.56,0.00055342,120]
[340812418,1729866662243,-500.0,0.00055342,120]
[340812419,1729866662254,-3337.84,0.00055342,120]
[340812420,1729866662264,-1405.83,0.00055342,120]
[340812421,1729866662273,-500.0,0.00055342,120]
[340812422,1729866662283,-750.8,0.00055342,21]
[340812423,1729866662295,-677.34,0.00055342,7]
[340812424,1729866662307,-776.72,0.00055342,120]
[340812425,1729866662316,-500.0,0.00055342,120]
[340812426,1729866662326,-2347.7,0.00055342,120]
[340812427,1729866662336,-666.05,0.00055342,120]
[340812428,1729866662347,-3048.28,0.00055342,120]
[340812429,1729866662358,-500.0,0.00055342,120]
[340812430,1729866662367,-775.41,0.00055342,120]
[340812431,1729866662377,-508.09,0.00055342,120]
[340812432,1729866662388,-808.75,0.00055342,120]
[340812433,1729866662400,-1715.75,0.00055342,120]
[340812434,1729866662413,-2038.45,0.00055342,120]
[340812435,1729866662423,-671.69,0.00055342,120]
[340812436,1729866662433,-1343.15,0.00055342,120]
[340812437,1729866662443,-642.22,0.00055342,120]
[340812438,1729866662454,-800.27,0.00055342,120]
[340812439,1729866662464,-1556.19,0.00055342,120]
[340812440,1729866662475,-1834.7,0.00055342,120]
[340812441,1729866662485,-1599.54,0.00055342,120]
[340812442,1729866662494,-500.0,0.00055342,120]
[340812443,1729866662507,-6179.67,0.00055342,120]
[340812444,1729866662516,-2258.98,0.00055342,4]
[340812445,1729866662525,-612.9,0.00055342,120]
[340812446,1729866662535,-500.0,0.00055342,120]
[340812447,1729866662550,-2922.63,0.00055342,120]
[340812448,1729866662560,-500.0,0.00055342,120]
[340812449,1729866662570,-500.0,0.00055342,120]
[340812450,1729866662580,-3301.62,0.00055342,120]
[340812451,1729866662590,-1319.19,0.00055342,120]
[340812452,1729866662600,-2091.41,0.00055342,120]
[340812453,1729866662611,-2373.58934159,0.00055344,15]
[340812454,1729866662620,-502.16546152,0.00055422,120]
[340812455,1729866662630,-1000.0,0.0005551,120]
[340812456,1729866662640,-500.0,0.00055581,120]
[340812457,1729866662650,-545.455549,0.000556,120]
[340812458,1729866662660,-500.0,0.00055605,120]
[340812459,1729866662670,-1223.67,0.00055616,120]
[340812460,1729866662680,-500.0,0.00055616,120]
[340812461,1729866662690,-887.29,0.00055616,120]
[340812462,1729866662700,-684.69,0.00055616,120]
[340812463,1729866662710,-500.0,0.00055616,120]
[340812464,1729866662720,-203.8147105,0.00055616,120]
[340812465,1729866662730,-500.0,0.00055616,120]
[340812466,1729866662740,-1603.99,0.00055616,120]
[340812467,1729866662750,-500.0,0.00055616,120]
[340812468,1729866662761,-1069.19,0.00055616,120]
[340812469,1729866662771,-1219.66,0.00055616,120]
[340812470,1729866662781,-500.0,0.00055616,120]
[340812471,1729866662791,-595.61,0.00055616,120]
[340812472,1729866662801,-803.59,0.00055616,120]
[340812473,1729866662810,-511.03,0.00055616,120]
[340812474,1729866662820,-500.0,0.00055616,120]
[340812475,1729866662830,-804.6,0.00055616,120]
[340812476,1729866662840,-347.41506804,0.00055616,120]
[340812477,1729866662849,-500.0,0.00055616,120]
[340812478,1729866662859,-1522.61,0.00055616,120]
[340812479,1729866662869,-681.96,0.00055616,120]
[340812480,1729866662878,-610.82318672,0.00055616,120]
[340812481,1729866662888,-1145.82,0.00055616,120]
[340812482,1729866662897,-5122.33,0.00055616,120]
[340812483,1729866662907,-500.0,0.00055616,55]
[340812484,1729866662917,-500.0,0.00055616,120]
[340812485,1729866662927,-655.32,0.00055616,120]
[340812486,1729866662937,-5230.31,0.00055616,120]
[340812487,1729866662947,-22445.75,0.00055616,120]
[340812488,1729866662957,-12679.49,0.00055616,120]
[340812489,1729866662967,-631.45187312,0.00055616,120]
[340812490,1729866662977,-1800.42,0.00055616,120]
[340812491,1729866662990,-697.56,0.00055616,120]
[340812492,1729866663000,-525.43467963,0.00055616,120]
[340812493,1729866663012,-1405.83,0.00055616,120]
[340812494,1729866663022,-3337.84,0.00055616,120]
[340812495,1729866663135,-500.0,0.00055616,120]
[340812496,1729866663146,-750.8,0.00055616,21]
[340812497,1729866663155,-677.34,0.00055616,7]
[340812498,1729866663165,-776.72,0.00055616,120]
[340812499,1729866663174,-500.0,0.00055616,120]
[340812500,1729866663184,-2347.7,0.00055616,120]
[340812501,1729866663194,-666.05,0.00055616,120]
[340812502,1729866663204,-3048.28,0.00055616,120]
[340812503,1729866663214,-500.0,0.00055616,120]
[340812504,1729866663224,-775.41,0.00055616,120]
[340812505,1729866663238,-508.09,0.00055616,120]
[340812506,1729866663248,-808.75,0.00055616,120]
[340812507,1729866663259,-1715.75,0.00055616,120]
[340812508,1729866663269,-2038.45,0.00055616,120]
[340812509,1729866663279,-671.69,0.00055616,120]
[340812510,1729866663289,-1343.15,0.00055616,120]
[340812511,1729866663301,-642.22,0.00055616,120]
[340812512,1729866663311,-800.27,0.00055616,120]
[340812513,1729866663321,-1556.19,0.00055616,120]
[340812514,1729866663331,-1834.7,0.00055616,120]
[340812515,1729866663341,-1599.54,0.00055616,120]
[340812516,1729866663351,-529.41307071,0.00055616,120]
[340812517,1729866663361,-6179.67,0.00055616,120]
[340812518,1729866663371,-2258.98,0.00055616,4]
[340812519,1729866663382,-612.9,0.00055616,120]
[340812520,1729866663392,-500.0,0.00055616,120]
[340812521,1729866663401,-2922.63,0.00055616,120]
[340812522,1729866663411,-500.0,0.00055616,120]
[340812523,1729866663421,-500.0,0.00055616,120]
[340812524,1729866663431,-3301.62,0.00055616,120]
[340812525,1729866663441,-1319.19,0.00055616,120]
[340812526,1729866663451,-2091.41,0.00055616,120]
[340812527,1729866663460,-900.0,0.00055665,120]
[340812528,1729866663470,-300.0,0.000557,2]
[340812529,1729866663479,-252748.0,0.0005578,2]
[340812530,1729866663489,-5081.24,0.000558,60]
[340812531,1729866663499,-500.0,0.000558,120]
[340812532,1729866663514,-392.80383529,0.000558,2]
[340812533,1729866663524,-1223.67,0.0005589,120]
[340812534,1729866663534,-500.0,0.0005589,120]
[340812535,1729866663545,-887.29,0.0005589,120]
[340812536,1729866663555,-684.69,0.0005589,120]
[340812537,1729866663566,-500.0,0.0005589,120]
[340812538,1729866663576,-500.0,0.0005589,120]
[340812539,1729866663587,-1603.99,0.0005589,120]
[340812540,1729866663598,-500.0,0.0005589,120]
[340812541,1729866663608,-1069.19,0.0005589,120]
[340812542,1729866663618,-1219.66,0.0005589,120]
[340812543,1729866663628,-512.37581991,0.0005589,120]
[340812544,1729866663638,-595.61,0.0005589,120]
[340812545,1729866663649,-803.59,0.0005589,120]
[340812546,1729866663658,-511.03,0.0005589,120]
[340812547,1729866663668,-500.0,0.0005589,120]
[340812548,1729866663678,-804.6,0.0005589,120]
[340812549,1729866663688,-500.0,0.0005589,120]
[340812550,1729866663698,-1522.61,0.0005589,120]
[340812551,1729866663708,-681.96,0.0005589,120]
[340812552,1729866663717,-1145.82,0.0005589,120]
[340812553,1729866663728,-5122.33,0.0005589,120]
[340812554,1729866663739,-500.0,0.0005589,55]
[340812555,1729866663750,-349.52825732,0.0005589,120]
[340812556,1729866663765,-655.32,0.0005589,120]
[340812557,1729866663776,-5230.31,0.0005589,120]
[340812558,1729866663786,-22445.75,0.0005589,120]
[340812559,1729866663797,-12679.49,0.0005589,120]
[340812560,1729866663807,-1800.42,0.0005589,120]
[340812561,1729866663817,-697.56,0.0005589,120]
[340812562,1729866663827,-1405.83,0.0005589,120]
[340812563,1729866663838,-3337.84,0.0005589,120]
[340812564,1729866663848,-500.0,0.0005589,120]
[340812565,1729866663859,-750.8,0.0005589,21]
[340812566,1729866663869,-677.34,0.0005589,7]
[340812567,1729866663879,-776.72,0.0005589,120]
[340812568,1729866663890,-500.0,0.0005589,120]
[340812569,1729866663900,-2347.7,0.0005589,120]
[340812570,1729866663911,-666.05,0.0005589,120]
[340812571,1729866663921,-3048.28,0.0005589,120]
[340812572,1729866663932,-500.0,0.0005589,120]
[340812573,1729866663942,-775.41,0.0005589,120]
[340812574,1729866663953,-508.09,0.0005589,120]
[340812575,1729866663962,-808.75,0.0005589,120]
[340812576,1729866663973,-1715.75,0.0005589,120]
[340812577,1729866663982,-2038.45,0.0005589,120]
[340812578,1729866663992,-671.69,0.0005589,120]
[340812579,1729866664002,-1343.15,0.0005589,120]
[340812580,1729866664018,-642.22,0.0005589,120]
[340812581,1729866664028,-800.27,0.0005589,120]
[340812582,1729866664038,-1556.19,0.0005589,120]
[340812583,1729866664048,-1834.7,0.0005589,120]
[340812584,1729866664058,-1599.54,0.0005589,120]
[340812585,1729866664081,-6179.67,0.0005589,120]
[340812586,1729866664094,-2258.98,0.0005589,4]
[340812587,1729866664105,-612.9,0.0005589,120]
[340812588,1729866664115,-500.0,0.0005589,120]
[340812589,1729866664125,-2922.63,0.0005589,120]
[340812590,1729866664135,-355.8391789,0.0005589,120]
[340812591,1729866664145,-505.89816165,0.0005589,120]
[340812592,1729866664156,-3301.62,0.0005589,120]
[340812593,1729866664167,-1319.19,0.0005589,120]
[340812594,1729866664177,-2091.41,0.0005589,120]
[340812595,1729866664189,-161.08,0.0005589,2]
[340812596,1729866664199,-500.0,0.00055935,120]
[340812597,1729866664209,-50000.0,0.00056,46]
[340812598,1729866664219,-50000.0,0.00056,56]
[340812599,1729866664354,-1000.0,0.00056,120]
[340812600,1729866664372,-1026.636968,0.00056,57]
[340812601,1729866664382,-700.0,0.00056109,120]
[340812602,1729866664392,-700.0,0.0005611,120]
[340812603,1729866664402,-1223.67,0.00056164,120]
[340812604,1729866664412,-500.0,0.00056164,120]
[340812605,1729866664423,-887.29,0.00056164,120]
[340812606,1729866664432,-684.69,0.00056164,120]
[340812607,1729866664443,-500.0,0.00056164,120]
[340812608,1729866664453,-500.0,0.00056164,120]
[340812609,1729866664467,-1603.99,0.00056164,120]
[340812610,1729866664478,-500.0,0.00056164,120]
[340812611,1729866664489,-1069.19,0.00056164,120]
[340812612,1729866664499,-1219.66,0.00056164,120]
[340812613,1729866664513,-595.61,0.00056164,120]
[340812614,1729866664523,-803.59,0.00056164,120]
[340812615,1729866664534,-511.03,0.00056164,120]
[340812616,1729866664545,-500.0,0.00056164,120]
[340812617,1729866664556,-804.6,0.00056164,120]
[340812618,1729866664566,-500.0,0.00056164,120]
[340812619,1729866664577,-1522.61,0.00056164,120]
[340812620,1729866664587,-681.96,0.00056164,120]
[340812621,1729866664598,-1145.82,0.00056164,120]
[340812622,1729866664609,-5122.33,0.00056164,120]
[340812623,1729866664620,-500.0,0.00056164,55]
[340812624,1729866664632,-655.32,0.00056164,120]
[340812625,1729866664643,-5230.31,0.00056164,120]
[340812626,1729866664654,-22445.75,0.00056164,120]
[340812627,1729866664665,-12679.49,0.00056164,120]
[340812628,1729866664676,-1800.42,0.00056164,120]
[340812629,1729866664687,-697.56,0.00056164,120]
[340812630,1729866664698,-3337.84,0.00056164,120]
[340812631,1729866664709,-1405.83,0.00056164,120]
[340812632,1729866664720,-500.0,0.00056164,120]
[340812633,1729866664730,-750.8,0.00056164,21]
[340812634,1729866664741,-677.34,0.00056164,7]
[340812635,1729866664751,-776.72,0.00056164,120]
[340812636,1729866664766,-500.0,0.00056164,120]
[340812637,1729866664776,-2347.7,0.00056164,120]
[340812638,1729866664787,-666.05,0.00056164,120]
[340812639,1729866664798,-3048.28,0.00056164,120]
[340812640,1729866664810,-500.0,0.00056164,120]
[340812641,1729866664820,-775.41,0.00056164,120]
[340812642,1729866664831,-508.09,0.00056164,120]
[340812643,1729866664841,-808.75,0.00056164,120]
[340812644,1729866664851,-1715.75,0.00056164,120]
[340812645,1729866664861,-2038.45,0.00056164,120]
[340812646,1729866664871,-671.69,0.00056164,120]
[340812647,1729866664882,-1343.15,0.00056164,120]